bitfinex/quotes_BTCUSD_20250527
["timestamp","ask_amount","ask_price","bid_price","bid_amount"]
[1748354465262,0.23330002,109890.0,109880.0,0.60508791]
[1748354465457,0.23330002,109890.0,109880.0,1.53279991]
[1748354465699,0.26450002,109890.0,109880.0,1.80730991]
[1748354465911,0.26450002,109890.0,109880.0,1.68662191]
[1748354466132,0.26450002,109890.0,109880.0,1.549953]
[1748354466346,0.20320002,109890.0,109880.0,2.03852695]
[1748354467088,0.26620002,109890.0,109880.0,1.523934]
[1748354468088,0.26620002,109890.0,109880.0,1.847555]
[1748354468301,0.26620002,109890.0,109880.0,1.767548]
[1748354468949,0.23600002,109890.0,109880.0,2.04061869]
[1748354469165,0.20320002,109890.0,109880.0,3.50633895]
[1748354469366,0.20320002,109890.0,109880.0,3.45946895]
[1748354470203,0.003,109890.0,109880.0,2.88137119]
[1748354470418,0.003,109890.0,109880.0,3.40480929]
[1748354470648,0.003,109890.0,109880.0,3.41935014]
[1748354470874,0.003,109890.0,109880.0,3.1429594]
[1748354471085,0.003,109890.0,109880.0,5.88855914]
[1748354471300,0.001,109890.0,109880.0,5.88855914]
[1748354471484,0.05458775,109910.0,109900.0,0.54928015]
[1748354471728,0.06368593,109910.0,109900.0,4.8528221]
[1748354471936,0.05458775,109910.0,109900.0,5.2528221]
[1748354472153,0.05458775,109910.0,109900.0,4.9531021]
[1748354472364,0.05458775,109910.0,109900.0,5.3145821]
[1748354472576,0.06368585,109910.0,109900.0,5.3145821]
[1748354472976,0.04548973,109910.0,109900.0,5.3145821]
[1748354473218,0.05458783,109910.0,109900.0,5.0149021]
[1748354473438,0.04548973,109910.0,109900.0,5.32904071]
[1748354473718,0.05458783,109910.0,109900.0,5.33104071]
[1748354474155,0.06368601,109910.0,109900.0,5.26924071]
[1748354474359,0.06368601,109910.0,109900.0,5.2547821]
[1748354474575,0.07278436,109910.0,109900.0,5.25678226]
[1748354474796,0.06368601,109910.0,109900.0,3.89018309]
[1748354475023,0.05458783,109910.0,109900.0,3.89018309]
[1748354475243,0.06368601,109910.0,109900.0,5.28033909]
[1748354475969,0.25475134,109910.0,109900.0,5.28033909]
[1748354476206,0.254752,109910.0,109900.0,5.27116041]
[1748354476447,0.24565415,109910.0,109900.0,5.26916041]
[1748354476686,0.22745787,109910.0,109900.0,1.98924018]
[1748354476914,0.22745787,109910.0,109900.0,1.95940818]
[1748354477386,0.22745787,109910.0,109900.0,4.22629198]
[1748354477639,0.2183596,109910.0,109900.0,4.04430836]
[1748354477936,0.2797596,109910.0,109900.0,1.349553]
[1748354478191,0.2797596,109910.0,109900.0,1.689553]
[1748354478477,0.2797596,109910.0,109900.0,0.651994]
[1748354478752,0.2797596,109910.0,109900.0,0.002]
[1748354479024,0.2797596,109910.0,109900.0,0.30156]
[1748354479290,0.2797596,109910.0,109900.0,0.342]
[1748354479540,0.2797596,109910.0,109900.0,0.582615]
[1748354480031,0.2797596,109910.0,109900.0,0.558112]
[1748354480260,0.2797596,109910.0,109900.0,0.449026]
[1748354480491,0.2797596,109910.0,109900.0,0.342]
[1748354480714,0.2797596,109910.0,109900.0,0.002]
[1748354480898,0.83094242,109910.0,109900.0,0.002]
[1748354481693,0.83094242,109910.0,109900.0,0.001]
[1748354483054,0.20019961,109890.0,109880.0,0.81019619]
[1748354483288,0.26469961,109890.0,109880.0,0.81019619]
[1748354483975,0.26469961,109890.0,109880.0,0.73728]
[1748354484427,0.26769961,109890.0,109880.0,0.73728]
[1748354485924,0.26769961,109890.0,109880.0,1.13728]
[1748354486150,0.20319961,109890.0,109880.0,1.13728]
[1748354488490,0.22139887,109890.0,109880.0,4.69773852]
[1748354488720,0.20319994,109890.0,109880.0,4.67496481]
[1748354488972,0.19410018,109890.0,109880.0,3.96063481]
[1748354489382,0.01209976,109890.0,109880.0,5.3557829]
[1748354489616,0.20319978,109890.0,109880.0,5.4177829]
[1748354489828,0.02729853,109890.0,109880.0,5.43598349]
[1748354490041,0.03639837,109890.0,109880.0,5.43598349]
[1748354490261,0.04749829,109890.0,109880.0,5.43598349]
[1748354490467,0.02019868,109890.0,109880.0,5.42152037]
[1748354490691,0.002,109890.0,109880.0,5.42152037]
[1748354491763,0.002,109890.0,109880.0,5.85342231]
[1748354491979,0.002,109890.0,109880.0,5.42152037]
[1748354493494,0.002,109890.0,109880.0,5.85342231]
[1748354494446,0.00909843,109900.0,109890.0,4.49256719]
[1748354494691,0.03639212,109910.0,109900.0,0.54928015]
[1748354494934,0.05458799,109910.0,109900.0,4.4327291]
[1748354495188,0.02729419,109910.0,109900.0,5.3533672]
[1748354495429,0.02729419,109910.0,109900.0,5.3533272]
[1748354495645,0.02729419,109910.0,109900.0,5.3129821]
[1748354496799,0.02929419,109910.0,109900.0,5.3129821]
[1748354497676,0.02729419,109910.0,109900.0,5.3129821]
[1748354497898,0.02829419,109910.0,109900.0,5.3129821]
[1748354500188,0.03739196,109910.0,109900.0,5.3402641]
[1748354500458,0.05558807,109910.0,109900.0,5.3402641]
[1748354500689,0.22845736,109910.0,109900.0,1.56165495]
[1748354500940,0.22845736,109910.0,109900.0,0.91497595]
[1748354501160,0.22845736,109910.0,109900.0,2.18722795]
[1748354502037,0.29195736,109910.0,109900.0,1.494046]
[1748354504026,0.29195736,109910.0,109900.0,1.154046]
[1748354504479,0.29195736,109910.0,109900.0,1.494046]
[1748354504717,0.21935943,109910.0,109900.0,4.063644]
[1748354504943,0.03739237,109910.0,109900.0,4.33668157]
[1748354505178,0.22845736,109910.0,109900.0,4.35487976]
[1748354505405,0.02829419,109910.0,109900.0,4.46013982]
[1748354505654,0.04648981,109910.0,109900.0,5.87776576]
[1748354505875,0.04648981,109910.0,109900.0,5.86330207]
[1748354506103,0.04648981,109910.0,109900.0,5.43140013]
[1748354506327,0.04648973,109910.0,109900.0,5.13224013]
[1748354506546,0.06468593,109910.0,109900.0,5.43132013]
[1748354506767,0.05558775,109910.0,109900.0,5.43132013]
[1748354506981,0.07378403,109910.0,109900.0,5.43132013]
[1748354507427,0.06468585,109910.0,109900.0,5.43132013]
[1748354507642,0.07378403,109910.0,109900.0,5.43132013]
[1748354508073,0.07378403,109910.0,109900.0,5.43128013]
[1748354509184,0.06468634,109910.0,109900.0,5.43127971]
[1748354509423,0.04649006,109910.0,109900.0,5.43127971]
[1748354509847,0.04649006,109910.0,109900.0,5.82383971]
[1748354510273,0.04648948,109910.0,109900.0,5.82383971]
[1748354510487,0.06468518,109910.0,109900.0,5.82383971]
[1748354510667,0.05558733,109910.0,109900.0,5.52479971]
[1748354510904,0.05558733,109910.0,109900.0,5.82379971]
[1748354511116,0.04648948,109910.0,109900.0,5.82379971]
[1748354511328,0.05558725,109910.0,109900.0,6.25570165]
[1748354511539,0.04648948,109910.0,109900.0,5.82379971]
[1748354512005,0.04648956,109910.0,109900.0,5.82375971]
[1748354512450,0.03739179,109910.0,109900.0,5.82375971]
[1748354512894,0.02829419,109910.0,109900.0,6.25566165]
[1748354513116,0.02829419,109910.0,109900.0,6.28379781]
[1748354513342,0.02829419,109910.0,109900.0,5.82375971]
[1748354514225,0.02829419,109910.0,109900.0,6.25566165]
[1748354514903,0.02829419,109910.0,109900.0,5.82375971]
[1748354515118,0.03739179,109910.0,109900.0,5.52479971]
[1748354515338,0.02829419,109910.0,109900.0,6.25558165]
[1748354515556,0.02829419,109910.0,109900.0,5.82367971]
[1748354515795,0.02829419,109910.0,109900.0,1.91091171]
[1748354516017,0.02829419,109910.0,109900.0,5.85261998]
[1748354516491,0.03739188,109910.0,109900.0,5.49023998]
[1748354516708,0.03739188,109910.0,109900.0,5.76013971]
[1748354516921,0.03739179,109910.0,109900.0,5.76013971]
[1748354517590,0.03739179,109910.0,109900.0,5.79063971]
[1748354517811,0.06468559,109910.0,109900.0,5.46129971]
[1748354518038,0.06468551,109910.0,109900.0,5.76013971]
[1748354518598,0.05558741,109910.0,109900.0,5.76013971]
[1748354518941,0.06468551,109910.0,109900.0,5.76013971]
[1748354519742,0.06468551,109910.0,109900.0,1.84737171]
[1748354519945,0.06468551,109910.0,109900.0,5.76013971]
[1748354520153,0.22845753,109910.0,109900.0,5.23382195]
[1748354520348,0.22845753,109910.0,109900.0,4.85909626]
[1748354520508,0.22845753,109910.0,109900.0,5.16699494]
[1748354520723,0.04649014,109910.0,109900.0,1.84733154]
[1748354520935,0.03739179,109910.0,109900.0,5.76009954]
[1748354521152,0.04648956,109910.0,109900.0,5.79339954]
[1748354521363,0.05558741,109910.0,109900.0,5.8544357]
[1748354521571,0.04648948,109910.0,109900.0,5.82629954]
[1748354521780,0.02829419,109910.0,109900.0,5.82629954]
[1748354522639,0.02829419,109910.0,109900.0,6.28633764]
[1748354522846,0.02829419,109910.0,109900.0,6.25820148]
[1748354523937,0.02829419,109910.0,109900.0,5.82629954]
[1748354524158,0.02829419,109910.0,109900.0,5.01451349]
[1748354524620,0.03739179,109910.0,109900.0,5.01451349]
[1748354524832,0.02829419,109910.0,109900.0,5.01451349]
[1748354525049,0.03739196,109910.0,109900.0,5.04951349]
[1748354525263,0.03739196,109910.0,109900.0,5.34823349]
[1748354525906,0.02829419,109910.0,109900.0,5.34823349]
[1748354526118,0.03739188,109910.0,109900.0,5.68823349]
[1748354526754,0.04648973,109910.0,109900.0,5.68823349]
[1748354526953,0.02829419,109910.0,109900.0,5.68823349]
[1748354527378,0.03739179,109910.0,109900.0,5.73333681]
[1748354527615,0.03739179,109910.0,109900.0,5.76473681]
[1748354527835,0.02829419,109910.0,109900.0,5.76473681]
[1748354528075,0.02829419,109910.0,109900.0,6.22477491]
[1748354528286,0.02829419,109910.0,109900.0,5.75023349]
[1748354528948,0.04648981,109910.0,109900.0,5.38293745]
[1748354529154,0.04648965,109910.0,109900.0,5.33003605]
[1748354529377,0.02829419,109910.0,109900.0,5.33003605]
[1748354529581,0.03739179,109910.0,109900.0,5.34453871]
[1748354529817,0.02829419,109910.0,109900.0,5.34453871]
[1748354530021,0.02829419,109910.0,109900.0,5.91394033]
[1748354531322,0.02829419,109910.0,109900.0,5.88580417]
[1748354531512,0.02829419,109910.0,109900.0,5.91394033]
[1748354531708,0.02829419,109910.0,109900.0,5.87130151]
[1748354531924,0.02829419,109910.0,109900.0,5.88580565]
[1748354532598,0.02829419,109910.0,109900.0,5.87130151]
[1748354533170,0.02829419,109910.0,109900.0,5.89858251]
[1748354534348,0.02829419,109910.0,109900.0,5.95572532]
[1748354534561,0.02829419,109910.0,109900.0,5.92758916]
[1748354534733,0.02829419,109910.0,109900.0,5.95572532]
[1748354535572,0.02829419,109910.0,109900.0,5.92758916]
[1748354535775,0.02829419,109910.0,109900.0,5.53170916]
[1748354535919,0.02829419,109910.0,109900.0,5.92738916]
[1748354538071,0.02829419,109910.0,109900.0,5.95552532]
[1748354539677,0.02829419,109910.0,109900.0,5.92738916]
[1748354540125,0.02829419,109910.0,109900.0,2.01462116]
[1748354540328,0.02829419,109910.0,109900.0,5.92738916]
[1748354540747,0.02829419,109910.0,109900.0,5.90010816]
[1748354542210,0.02829419,109910.0,109900.0,5.92824432]
[1748354542451,0.02829419,109910.0,109900.0,5.90010816]
[1748354542665,0.02829419,109910.0,109900.0,6.75621324]
[1748354542865,0.02829419,109910.0,109900.0,6.25377852]
[1748354543381,0.02829419,109910.0,109900.0,5.33635605]
[1748354543599,0.02829419,109910.0,109900.0,5.85034151]
[1748354543842,0.02829419,109910.0,109900.0,6.17774297]
[1748354544717,0.02829419,109910.0,109900.0,1.80774641]
[1748354544718,0.29115736,109910.0,109900.0,1.80774641]
[1748354544940,0.29115736,109910.0,109900.0,1.007961]
[1748354545179,0.29115736,109910.0,109900.0,0.54042389]
[1748354545404,0.29115736,109910.0,109900.0,0.83874389]
[1748354545629,0.29115736,109910.0,109900.0,0.52589831]
[1748354545844,0.29115736,109910.0,109900.0,1.29986968]
[1748354546063,0.30213929,109910.0,109900.0,1.29986968]
[1748354546296,0.30313929,109910.0,109900.0,1.26361137]
[1748354546546,0.30613929,109910.0,109900.0,1.26361137]
[1748354546754,0.30613929,109910.0,109900.0,1.252725]
[1748354547157,0.30613929,109910.0,109900.0,0.857285]
[1748354547389,0.30613929,109910.0,109900.0,1.155565]
[1748354548525,0.29415736,109910.0,109900.0,1.155565]
[1748354549391,0.29415736,109910.0,109900.0,2.357684]
[1748354549607,0.29415736,109910.0,109900.0,2.132499]
[1748354550041,0.29415736,109910.0,109900.0,1.441699]
[1748354550261,0.25388263,109900.0,109890.0,0.09716]
[1748354550479,0.20928074,109900.0,109890.0,2.29420458]
[1748354550684,0.20018181,109900.0,109890.0,3.15320495]
[1748354550896,0.20018181,109900.0,109890.0,0.88645395]
[1748354551100,0.23028181,109900.0,109890.0,1.06845413]
[1748354551308,0.23028181,109900.0,109890.0,3.36680913]
[1748354551798,0.23028181,109900.0,109890.0,3.35185913]
[1748354552025,0.02729419,109910.0,109900.0,1.11256215]
[1748354552248,0.02729419,109910.0,109900.0,4.6167021]
[1748354552249,0.04548964,109910.0,109900.0,4.6167021]
[1748354552436,0.05458741,109910.0,109900.0,4.6167021]
[1748354552660,0.05458741,109910.0,109900.0,5.0167021]
[1748354552915,0.06368559,109910.0,109900.0,5.0167021]
[1748354553146,0.22745736,109910.0,109900.0,2.68578795]
[1748354553361,0.22745736,109910.0,109900.0,2.38442695]
[1748354553579,0.27296125,109910.0,109900.0,2.38442695]
[1748354553802,0.27296125,109910.0,109900.0,2.56641057]
[1748354553990,0.27296125,109910.0,109900.0,2.57550966]
[1748354554197,0.27296125,109910.0,109900.0,5.11417067]
[1748354554411,0.21835943,109910.0,109900.0,5.11417067]
[1748354554628,0.21835943,109910.0,109900.0,5.12326951]
[1748354554831,0.21835943,109910.0,109900.0,5.11417067]
[1748354555131,0.21835943,109910.0,109900.0,5.11417059]
[1748354555348,0.21835943,109910.0,109900.0,5.25407243]
[1748354555798,0.0454903,109910.0,109900.0,5.25407243]
[1748354556044,0.23655563,109910.0,109900.0,5.26317111]
[1748354556259,0.04548981,109910.0,109900.0,5.41434873]
[1748354556505,0.24565332,109910.0,109900.0,5.37205013]
[1748354556723,0.24565332,109910.0,109900.0,5.34846243]
[1748354556946,0.06368626,109910.0,109900.0,5.36665987]
[1748354557160,0.24565332,109910.0,109900.0,5.36665987]
[1748354557374,0.06368609,109910.0,109900.0,5.36665938]
[1748354557602,0.05458791,109910.0,109900.0,5.36665938]
[1748354557822,0.06368609,109910.0,109900.0,5.36665938]
[1748354558508,0.2274577,109910.0,109900.0,3.74764457]
[1748354558738,0.2274577,109910.0,109900.0,0.62544]
[1748354558739,0.28285952,109910.0,109900.0,0.62544]
[1748354558965,0.28285952,109910.0,109900.0,0.92356]
[1748354559225,0.28285952,109910.0,109900.0,1.32356]
[1748354559430,0.28285952,109910.0,109900.0,0.53608]
[1748354559644,0.37391347,109910.0,109900.0,0.102497]
[1748354559853,0.37391347,109910.0,109900.0,0.400617]
[1748354560482,0.37391347,109910.0,109900.0,0.396377]
[1748354560908,0.37491347,109910.0,109900.0,0.396377]
[1748354561339,0.37491347,109910.0,109900.0,0.098257]
[1748354561997,0.19108263,109900.0,109890.0,0.4]
[1748354562232,0.25228263,109900.0,109890.0,0.125357]
[1748354562471,0.26281783,109880.0,109870.0,0.39256]
[1748354562695,0.26281783,109880.0,109870.0,0.71863824]
[1748354563137,0.26281783,109880.0,109870.0,1.01671824]
[1748354564403,0.26281783,109880.0,109870.0,1.01771824]
[1748354565473,0.26281783,109880.0,109870.0,1.01871824]
[1748354565696,0.26281783,109880.0,109870.0,0.99203324]
[1748354565913,0.26281783,109880.0,109870.0,0.99103324]
[1748354566327,0.26281783,109880.0,109870.0,1.39103324]
[1748354566776,0.24658362,109900.0,109890.0,0.0091]
[1748354566999,0.21839887,109890.0,109880.0,0.54021799]
[1748354567216,0.20019994,109890.0,109880.0,4.52435074]
[1748354567426,0.20019994,109890.0,109880.0,4.33176449]
[1748354567930,0.18200018,109890.0,109880.0,1.039921]
[1748354568134,0.24340018,109890.0,109880.0,1.007329]
[1748354568551,0.24340018,109890.0,109880.0,0.910449]
[1748354568766,0.24340018,109890.0,109880.0,0.986052]
[1748354568974,0.24340018,109890.0,109880.0,0.99691803]
[1748354569460,0.24340018,109890.0,109880.0,0.94935403]
[1748354569897,0.24340018,109890.0,109880.0,1.37007503]
[1748354570105,0.18300018,109890.0,109880.0,1.37007503]
[1748354570717,0.18300018,109890.0,109880.0,2.04292503]
[1748354570919,0.18300018,109890.0,109880.0,1.86163303]
[1748354571726,0.18300018,109890.0,109880.0,1.850767]
[1748354571928,0.18300018,109890.0,109880.0,2.048932]
[1748354572123,0.18300018,109890.0,109880.0,2.178932]
[1748354572331,0.18300018,109890.0,109880.0,2.023834]
[1748354573380,0.18300018,109890.0,109880.0,2.12141]
[1748354574195,0.18300018,109890.0,109880.0,2.095903]
[1748354574397,0.21420018,109890.0,109880.0,1.590397]
[1748354574606,0.18300018,109890.0,109880.0,1.590397]
[1748354574808,0.18300018,109890.0,109880.0,2.010315]
[1748354575644,0.19111741,109880.0,109870.0,0.09693024]
[1748354575910,0.19111741,109880.0,109870.0,1.11520324]
[1748354576339,0.19111741,109880.0,109870.0,1.51520324]
[1748354576989,0.19111741,109880.0,109870.0,4.18023924]
[1748354577233,0.19111741,109880.0,109870.0,4.05712824]
[1748354577695,0.19108271,109900.0,109880.0,0.20931807]
[1748354577922,0.02729419,109910.0,109900.0,1.75272407]
[1748354578138,0.02729419,109910.0,109900.0,4.76178202]
[1748354578363,0.03639179,109910.0,109900.0,4.76178202]
[1748354578576,0.06368551,109910.0,109900.0,3.66059818]
[1748354578795,0.07278369,109910.0,109900.0,3.66969678]
[1748354579226,0.04548948,109910.0,109900.0,5.17088078]
[1748354579447,0.06368535,109910.0,109900.0,5.18535744]
[1748354579881,0.07278345,109910.0,109900.0,5.18535744]
[1748354580311,0.07278345,109910.0,109900.0,5.52535744]
[1748354580531,0.02729419,109910.0,109900.0,5.52535744]
[1748354580752,0.02729419,109910.0,109900.0,5.51088078]
[1748354580992,0.03639179,109910.0,109900.0,5.51088078]
[1748354581211,0.03639179,109910.0,109900.0,5.98502021]
[1748354581212,0.02729419,109910.0,109900.0,5.98502021]
[1748354581448,0.02729419,109910.0,109900.0,5.95688405]
[1748354582143,0.02729419,109910.0,109900.0,1.61689363]
[1748354582359,0.02729419,109910.0,109900.0,5.52542163]
[1748354582809,0.02729419,109910.0,109900.0,5.52742163]
[1748354583492,0.02729419,109910.0,109900.0,5.52842163]
[1748354584175,0.02729419,109910.0,109900.0,1.61989363]
[1748354584421,0.02729419,109910.0,109900.0,5.52842163]
[1748354584894,0.002,109910.0,109900.0,5.52842163]
[1748354586314,0.002,109910.0,109900.0,5.95988405]
[1748354586555,0.002,109910.0,109900.0,5.51388078]
[1748354586788,0.19236544,109930.0,109920.0,0.20924207]
[1748354586789,0.01043125,109930.0,109920.0,0.20924207]
[1748354587014,0.01043125,109930.0,109920.0,5.34242644]
[1748354587225,0.01043125,109930.0,109920.0,4.91096402]
[1748354587454,0.01043125,109930.0,109920.0,5.01332402]
[1748354587681,0.01043125,109930.0,109920.0,5.31096402]
[1748354587905,0.21965404,109930.0,109920.0,5.32478989]
[1748354588120,0.22889921,109930.0,109920.0,5.05444137]
[1748354588377,0.22889921,109930.0,109920.0,5.33584724]
[1748354588597,0.01967584,109930.0,109920.0,5.35404153]
[1748354588807,0.01967584,109930.0,109920.0,5.45847463]
[1748354589021,0.01967584,109930.0,109920.0,5.43033847]
[1748354589235,0.2288992,109930.0,109920.0,4.96292153]
[1748354589450,0.2288992,109930.0,109920.0,5.34594435]
[1748354589663,0.04696509,109930.0,109920.0,5.35604129]
[1748354589883,0.03786856,109930.0,109920.0,5.35604129]
[1748354590524,0.03786856,109930.0,109920.0,5.35304129]
[1748354590743,0.03786856,109930.0,109920.0,5.38334129]
[1748354590965,0.01057981,109930.0,109920.0,5.42808214]
[1748354591629,0.01057981,109930.0,109920.0,5.41354129]
[1748354592079,0.01057981,109930.0,109920.0,5.42796857]
[1748354593378,0.01057981,109930.0,109920.0,5.85954456]
[1748354594553,0.01057981,109930.0,109920.0,5.42808214]
[1748354596272,0.01057981,109930.0,109920.0,5.03396214]
[1748354596491,0.03786807,109930.0,109920.0,5.01942129]
[1748354596670,0.03786807,109930.0,109920.0,5.05540129]
[1748354596806,0.21070673,109930.0,109920.0,5.31645245]
[1748354597009,0.09147278,109930.0,109920.0,4.73917091]
[1748354597223,0.01057981,109930.0,109920.0,5.34370393]
[1748354597436,0.01057981,109930.0,109920.0,5.44313703]
[1748354597628,0.01967584,109930.0,109920.0,5.41500087]
[1748354597860,0.03786831,109930.0,109920.0,5.35280087]
[1748354598074,0.07096823,109930.0,109920.0,5.34370393]
[1748354598451,0.04696467,109930.0,109920.0,5.34370393]
[1748354599314,0.01967576,109930.0,109920.0,5.34370393]
[1748354599537,0.01967576,109930.0,109920.0,5.40610393]
[1748354599538,0.01057981,109930.0,109920.0,5.40610393]
[1748354600882,0.01057981,109930.0,109920.0,5.42064478]
[1748354601974,0.01057981,109930.0,109920.0,5.8521072]
[1748354608491,0.01057981,109930.0,109920.0,1.97171536]
[1748354608706,0.01057981,109930.0,109920.0,5.88024336]
[1748354609577,0.01057981,109930.0,109920.0,5.49224336]
[1748354610003,0.01057981,109930.0,109920.0,5.93945861]
[1748354610222,0.002,109950.0,109920.0,5.93945861]
[1748354610223,0.002,109950.0,109940.0,1.10882252]
[1748354610443,0.00204951,109950.0,109940.0,5.10840447]
[1748354610675,0.00204951,109950.0,109940.0,5.79374063]
[1748354610902,0.07197239,109960.0,109950.0,0.61558499]
[1748354611151,0.06697239,109960.0,109950.0,6.09957844]
[1748354611586,0.06697239,109960.0,109950.0,6.49957844]
[1748354611779,0.06697239,109960.0,109950.0,6.28992461]
[1748354612026,0.06697239,109960.0,109950.0,6.24188406]
[1748354612457,0.06697239,109960.0,109950.0,6.27002022]
[1748354612672,0.06477235,109960.0,109950.0,6.63456107]
[1748354613094,0.06477235,109960.0,109950.0,6.63556107]
[1748354613310,0.06477235,109960.0,109950.0,6.63756107]
[1748354613518,0.06477235,109960.0,109950.0,5.43896855]
[1748354613715,0.0738659,109960.0,109950.0,5.4116277]
[1748354613993,0.06477235,109960.0,109950.0,5.7516277]
[1748354615106,0.08295953,109960.0,109950.0,5.7515877]
[1748354615335,0.06477235,109960.0,109950.0,5.7515877]
[1748354615547,0.06477235,109960.0,109950.0,5.3580277]
[1748354615764,0.34673202,109960.0,109950.0,5.4022134]
[1748354615981,0.34673202,109960.0,109950.0,5.09940726]
[1748354616221,0.34673202,109960.0,109950.0,5.73444726]
[1748354616435,0.16484754,109960.0,109950.0,5.74454172]
[1748354616645,0.17394167,109960.0,109950.0,5.74454172]
[1748354617272,0.17394167,109960.0,109950.0,5.35130172]
[1748354617479,0.17394241,109960.0,109950.0,5.74454172]
[1748354617689,0.1648482,109960.0,109950.0,1.44979907]
[1748354618096,0.1648482,109960.0,109950.0,5.35832707]
[1748354618307,0.14665953,109960.0,109950.0,5.75832707]
[1748354618514,0.08295945,109960.0,109950.0,5.75832707]
[1748354618721,0.09205333,109960.0,109950.0,5.75832707]
[1748354618921,0.09205333,109960.0,109950.0,5.78559707]
[1748354619102,0.10114729,109960.0,109950.0,5.78559707]
[1748354619736,0.11024134,109960.0,109950.0,5.78559707]
[1748354620423,0.10114729,109960.0,109950.0,5.78559707]
[1748354620660,0.11024134,109960.0,109950.0,5.78559707]
[1748354621617,0.06477235,109960.0,109950.0,6.3217312]
[1748354621818,0.06477235,109960.0,109950.0,6.29359504]
[1748354622789,0.06477235,109960.0,109950.0,6.0247712]
[1748354622993,0.06477235,109960.0,109950.0,6.29359504]
[1748354623799,0.06477235,109960.0,109950.0,5.56599792]
[1748354624028,0.06477235,109960.0,109950.0,5.86295792]
[1748354624433,0.06477235,109960.0,109950.0,5.56599792]
[1748354624636,0.06477235,109960.0,109950.0,5.86291792]
[1748354625686,0.06477235,109960.0,109950.0,5.56599792]
[1748354625907,0.06477235,109960.0,109950.0,5.78547707]
[1748354625908,0.08295945,109960.0,109950.0,5.78547707]
[1748354626115,0.07386582,109960.0,109950.0,5.78547707]
[1748354626796,0.06477235,109960.0,109950.0,5.78547707]
[1748354627009,0.07386582,109960.0,109950.0,5.78547707]
[1748354629043,0.07062582,109960.0,109950.0,5.78547707]
[1748354629454,0.06153235,109960.0,109950.0,5.78547707]
[1748354631731,0.06153235,109960.0,109950.0,5.39235707]
[1748354631938,0.06153235,109960.0,109950.0,5.78535707]
[1748354634029,0.1322259,109960.0,109950.0,5.78531707]
[1748354634255,0.06153235,109960.0,109950.0,5.78531707]
[1748354635573,0.06153235,109960.0,109950.0,5.48855707]
[1748354635807,0.1350259,109960.0,109950.0,5.78531707]
[1748354636980,0.14411961,109960.0,109950.0,5.78531707]
[1748354637201,0.13911961,109960.0,109950.0,5.39235707]
[1748354637429,0.14821341,109960.0,109950.0,5.78527707]
[1748354637681,0.13911961,109960.0,109950.0,5.78527707]
[1748354638139,0.13411961,109960.0,109950.0,5.78527707]
[1748354638776,0.13411953,109960.0,109950.0,5.78527707]
[1748354639013,0.14321333,109960.0,109950.0,5.78527707]
[1748354639370,0.14321333,109960.0,109950.0,5.48855707]
[1748354639592,0.14321333,109960.0,109950.0,5.78527707]
[1748354640032,0.15230721,109960.0,109950.0,5.78527707]
[1748354640800,0.14321333,109960.0,109950.0,5.78527707]
[1748354641028,0.13411953,109960.0,109950.0,5.78527707]
[1748354641241,0.06062598,109960.0,109950.0,5.78527707]
[1748354642118,0.06062598,109960.0,109950.0,5.78523707]
[1748354642332,0.06971978,109960.0,109950.0,5.78523707]
[1748354642522,0.05153235,109960.0,109950.0,5.78523707]
[1748354642657,0.06062598,109960.0,109950.0,5.78523707]
[1748354642864,0.07881383,109960.0,109950.0,5.78523707]
[1748354643076,0.06971978,109960.0,109950.0,5.81422413]
[1748354643501,0.32649864,109960.0,109950.0,4.55846501]
[1748354643741,0.31740484,109960.0,109950.0,4.41636681]
[1748354644116,0.31740484,109960.0,109950.0,5.74412768]
[1748354644664,0.30831088,109960.0,109950.0,5.16029195]
[1748354644870,0.30831088,109960.0,109950.0,4.472202]
[1748354645074,0.30831088,109960.0,109950.0,4.8678389]
[1748354645311,0.30831088,109960.0,109950.0,4.84966386]
[1748354645758,0.12642606,109960.0,109950.0,4.95890698]
[1748354646031,0.34468607,109960.0,109950.0,5.76318368]
[1748354646189,0.3355926,109960.0,109950.0,5.73504752]
[1748354646353,0.3355926,109960.0,109950.0,5.78109268]
[1748354646354,0.05153235,109960.0,109950.0,5.78109268]
[1748354646576,0.06971953,109960.0,109950.0,5.75295652]
[1748354646985,0.10221953,109960.0,109950.0,5.75295652]
[1748354647183,0.15090738,109960.0,109950.0,5.75295652]
[1748354647390,0.16000151,109960.0,109950.0,5.75295652]
[1748354647561,0.34188583,109960.0,109950.0,5.75295652]
[1748354647777,0.16000151,109960.0,109950.0,5.75295652]
[1748354647974,0.16000151,109960.0,109950.0,5.78194358]
[1748354648587,0.16000151,109960.0,109950.0,5.75295652]
[1748354648962,0.32369865,109960.0,109950.0,5.50146981]
[1748354649186,0.31460485,109960.0,109950.0,3.27553001]
[1748354649406,0.31460485,109960.0,109950.0,3.20121464]
[1748354649620,0.31460485,109960.0,109950.0,3.21030934]
[1748354650048,0.3055108,109960.0,109950.0,1.81714472]
[1748354650254,0.3055108,109960.0,109950.0,5.33311272]
[1748354650458,0.3055108,109960.0,109950.0,5.72563272]
[1748354651324,0.3055108,109960.0,109950.0,1.81710472]
[1748354651533,0.3055108,109960.0,109950.0,5.52554195]
[1748354651815,0.3055108,109960.0,109950.0,4.95720495]
[1748354652232,0.3055108,109960.0,109950.0,5.44934585]
[1748354652444,0.29641667,109960.0,109950.0,5.11488295]
[1748354652625,0.29641667,109960.0,109950.0,4.631309]
[1748354652846,0.29641667,109960.0,109950.0,4.905494]
[1748354653304,0.29641667,109960.0,109950.0,5.18722]
[1748354653508,0.29641667,109960.0,109950.0,5.37821582]
[1748354654368,0.29641667,109960.0,109950.0,5.434488]
[1748354654581,0.29641667,109960.0,109950.0,5.434448]
[1748354655020,0.2626734,109960.0,109950.0,5.6254439]
[1748354655448,0.22695562,109960.0,109950.0,5.73468734]
[1748354656631,0.22695562,109960.0,109950.0,5.72559272]
[1748354656859,0.22695562,109960.0,109950.0,5.13302195]
[1748354657076,0.27076761,109960.0,109950.0,3.41449477]
[1748354657497,0.27076761,109960.0,109950.0,5.72555264]
[1748354658438,0.27076761,109960.0,109950.0,5.33311264]
[1748354658649,0.27076761,109960.0,109950.0,4.583308]
[1748354659078,0.27076761,109960.0,109950.0,4.59240304]
[1748354659314,0.2616734,109960.0,109950.0,4.583308]
[1748354659540,0.2616734,109960.0,109950.0,5.61630886]
[1748354659968,0.2616734,109960.0,109950.0,5.434408]
[1748354660616,0.2616734,109960.0,109950.0,5.62540382]
[1748354660835,0.2616734,109960.0,109950.0,5.61630886]
[1748354661125,0.2616734,109960.0,109950.0,5.434408]
[1748354662027,0.2616734,109960.0,109950.0,5.434368]
[1748354662252,0.2616734,109960.0,109950.0,4.002298]
[1748354662516,0.2616734,109960.0,109950.0,4.901131]
[1748354662972,0.2616734,109960.0,109950.0,4.823659]
[1748354663575,0.2616734,109960.0,109950.0,3.130464]
[1748354664162,0.2616734,109960.0,109950.0,2.738064]
[1748354664416,0.2616734,109960.0,109950.0,3.129424]
[1748354664638,0.2616734,109960.0,109950.0,4.405252]
[1748354664844,0.2626734,109960.0,109950.0,4.405252]
[1748354665050,0.24580374,109960.0,109950.0,4.405252]